bitfinex/quotes_SOLUSD_20220207
["timestamp","ask_amount","ask_price","bid_price","bid_amount"]
[1644232507633,24.7473,117.62,117.55,79.1163784]
[1644232508637,37.5095,117.62,117.55,79.1163784]
[1644232508834,11.919102,117.61,117.55,79.1163784]
[1644232509034,11.919102,117.61,117.55,37.2377]
[1644232510140,24.682402,117.61,117.55,24.2252]
[1644232511241,24.682402,117.61,117.55,24.4752]
[1644232511842,24.682402,117.61,117.55,24.2252]
[1644232512337,24.932402,117.61,117.55,24.2252]
[1644232514742,13.0133,117.61,117.55,75.39527126]
[1644232515739,44.15948681,117.61,117.55,75.39527126]
[1644232515941,44.15948681,117.61,117.55,24.4752]
[1644232521080,13.0133,117.61,117.55,24.4752]
[1644232521578,13.0133,117.61,117.55,37.238]
[1644232522177,13.0133,117.61,117.56,40.34625224]
[1644232523380,1.21150229,117.63,117.56,40.34625224]
[1644232523579,1.21150229,117.64,117.57,24.7304]
[1644232523777,1.21150229,117.65,117.57,37.4004]
[1644232523978,1.21150229,117.66,117.57,37.4004]
[1644232524379,1.21150229,117.66,117.58,48.66447191]
[1644232524578,1.21150229,117.67,117.58,78.09347191]
[1644232524780,71.72805114,117.68,117.59,23.8087]
[1644232524978,71.72805114,117.68,117.6,39.00888745]
[1644232525179,71.72805114,117.68,117.61,23.3034]
[1644232525381,71.72805114,117.68,117.62,47.90505191]
[1644232525581,71.72805114,117.68,117.61,23.5534]
[1644232525979,70.51654885,117.68,117.61,23.5534]
[1644232526179,71.72805114,117.68,117.61,23.5534]
[1644232526379,71.72805114,117.68,117.61,23.3034]
[1644232526979,36.77540229,117.68,117.61,58.2169043]
[1644232527179,35.5639,117.68,117.61,58.2169043]
[1644232527781,35.5639,117.68,117.61,58.4669043]
[1644232527982,70.98957479,117.68,117.61,58.4669043]
[1644232528482,75.23957479,117.68,117.61,58.4669043]
[1644232528683,76.45107708,117.68,117.61,58.2169043]
[1644232528885,70.98957479,117.68,117.61,23.3034]
[1644232530786,70.98957479,117.68,117.61,23.5534]
[1644232531184,75.23957479,117.68,117.61,23.5534]
[1644232531387,39.8139,117.68,117.62,48.11352342]
[1644232531585,22.8072,117.68,117.62,48.11352342]
[1644232531787,22.8072,117.68,117.62,48.36352342]
[1644232531986,22.8072,117.68,117.62,0.25]
[1644232532185,22.8072,117.68,117.61,23.3034]
[1644232532586,22.8072,117.68,117.61,23.5534]
[1644232533187,52.41121997,117.68,117.61,58.18202391]
[1644232533991,65.16781997,117.68,117.61,58.18202391]
[1644232534791,65.16781997,117.68,117.61,23.5534]
[1644232537396,65.16781997,117.68,117.59,12.42]
[1644232537595,4.25,117.67,117.58,29.4273]
[1644232537795,12.7591,117.66,117.58,35.6773]
[1644232537995,4.25,117.67,117.58,35.6773]
[1644232538195,53.37272226,117.68,117.58,35.6773]
[1644232538396,53.37272226,117.68,117.59,43.38129003]
[1644232538596,52.16121997,117.68,117.6,12.7568]
[1644232538796,52.16121997,117.68,117.61,62.47611605]
[1644232539196,52.16121997,117.68,117.61,62.72611605]
[1644232539598,64.91781997,117.68,117.61,62.72611605]
[1644232540498,35.3138,117.68,117.61,62.72611605]
[1644232540898,17.0053,117.69,117.61,75.48171605]
[1644232541199,1.21150229,117.7,117.61,75.48171605]
[1644232541200,1.21150229,117.71,117.62,1.83159706]
[1644232541404,1.21150229,117.72,117.63,43.34456672]
[1644232541800,1.21150229,117.72,117.63,43.59456672]
[1644232541997,25.28812522,117.72,117.63,56.34806672]
[1644232542201,29.87369568,117.7,117.63,43.59456672]
[1644232543498,42.62859568,117.7,117.63,43.59456672]
[1644232543799,42.62859568,117.7,117.63,43.34456672]
[1644232543999,43.84009797,117.7,117.63,43.34456672]
[1644232544699,13.96640229,117.7,117.63,43.34456672]
[1644232544901,1.21150229,117.7,117.63,43.34456672]
[1644232545099,1.21150229,117.71,117.63,43.59456672]
[1644232545298,1.21150229,117.71,117.64,23.8504]
[1644232545698,1.46150229,117.71,117.64,23.8504]
[1644232545899,13.96510229,117.71,117.64,23.8504]
[1644232546098,13.0036,117.71,117.64,23.8504]
[1644232546299,14.21510229,117.71,117.64,23.8504]
[1644232546699,52.73844003,117.71,117.64,23.8504]
[1644232547505,52.73844003,117.71,117.65,47.00072683]
[1644232547902,14.21510229,117.71,117.65,47.00072683]
[1644232548704,13.0036,117.71,117.65,47.00072683]
[1644232549103,12.7536,117.71,117.65,47.25072683]
[1644232549501,12.7536,117.71,117.65,47.00072683]
[1644232549701,23.73390229,117.72,117.65,47.25072683]
[1644232550103,23.73390229,117.72,117.67,45.19151098]
[1644232550302,23.73390229,117.72,117.66,24.1497]
[1644232550502,23.73390229,117.72,117.63,12.42]
[1644232550702,1.21150229,117.71,117.64,24.7964]
[1644232551404,1.46150229,117.71,117.65,42.12732052]
[1644232551602,1.21150229,117.71,117.65,42.12732052]
[1644232552002,14.21580229,117.71,117.65,42.12732052]
[1644232553807,14.21580229,117.71,117.65,42.37732052]
[1644232554207,1.46150229,117.71,117.65,42.37732052]
[1644232554406,1.21150229,117.71,117.65,55.09032052]
[1644232554807,1.21150229,117.71,117.65,71.75832052]
[1644232555008,1.21150229,117.71,117.66,23.2233]
[1644232555310,1.21150229,117.71,117.67,43.31872065]
[1644232555509,23.73390229,117.72,117.67,43.31872065]
[1644232555709,22.5224,117.72,117.67,43.56872065]
[1644232559533,22.5224,117.72,117.67,0.25]
[1644232559834,22.5224,117.72,117.66,23.4733]
[1644232560634,22.5224,117.72,117.66,66.71706042]
[1644232563737,22.7724,117.72,117.66,66.71706042]
[1644232563937,23.98390229,117.72,117.66,66.71706042]
[1644232564140,23.73390229,117.72,117.66,66.71706042]
[1644232564343,22.5224,117.72,117.66,66.71706042]
[1644232565742,22.7724,117.72,117.66,23.4733]
[1644232565939,35.5248,117.72,117.66,23.4733]
[1644232566340,36.73630229,117.72,117.66,23.2233]
[1644232566840,2.90984892,117.71,117.66,23.2233]
[1644232567043,36.48630229,117.72,117.66,23.2233]
[1644232567745,36.48630229,117.72,117.66,23.4733]
[1644232568143,31.25383977,117.71,117.66,23.4733]
[1644232569043,36.48630229,117.72,117.66,23.4733]
[1644232570246,31.79767535,117.71,117.66,23.4733]
[1644232570645,44.55127535,117.71,117.66,23.4733]
[1644232570849,45.76277764,117.71,117.66,23.4733]
[1644232572246,44.55127535,117.71,117.66,23.4733]
[1644232572446,45.76277764,117.71,117.66,23.4733]
[1644232572647,45.76277764,117.71,117.62,12.7546]
[1644232572848,5.46050229,117.7,117.61,23.92]
[1644232573152,9.40034326,117.68,117.6,59.23938202]
[1644232573352,13.65034326,117.68,117.6,59.23938202]
[1644232573550,14.86184555,117.68,117.6,59.23938202]
[1644232574449,10.61184555,117.68,117.6,24.112]
[1644232574848,12.7589,117.66,117.56,39.7112]
[1644232575049,12.7589,117.66,117.56,26.9501]
[1644232575249,18.22140229,117.66,117.56,22.7011]
[1644232575449,31.79767535,117.65,117.57,47.55651583]
[1644232575650,4.251,117.64,117.57,47.55651583]
[1644232576249,1.21150229,117.66,117.57,47.55651583]
[1644232576250,4.251,117.65,117.57,47.55651583]
[1644232576449,1.21150229,117.66,117.57,47.55651583]
[1644232576450,5.46250229,117.66,117.57,47.55651583]
[1644232576650,4.251,117.66,117.57,47.80651583]
[1644232576850,4.501,117.66,117.57,47.80651583]
[1644232577050,12.7627,117.63,117.57,47.80651583]
[1644232578753,12.7627,117.63,117.57,47.55651583]
[1644232580355,4.251,117.65,117.57,47.80651583]
[1644232580657,24.0317,117.67,117.58,6.0826814]
[1644232580854,24.0317,117.67,117.58,29.4939814]
[1644232581256,24.0317,117.67,117.59,45.6591444]
[1644232581454,38.17248693,117.67,117.59,58.4170444]
[1644232581654,36.7898,117.67,117.59,58.6670444]
[1644232583361,12.7581,117.67,117.59,58.6670444]
[1644232584065,13.0081,117.67,117.59,58.6670444]
[1644232587988,0.25,117.67,117.59,58.6670444]
[1644232588186,0.25,117.67,117.6,23.0134]
[1644232588387,12.7572,117.68,117.61,35.10675301]
[1644232588589,17.0072,117.68,117.61,35.10675301]
[1644232588786,17.0072,117.68,117.61,35.35675301]
[1644232589389,4.25,117.68,117.61,35.35675301]
[1644232589587,28.18650229,117.71,117.61,35.35675301]
[1644232589787,23.93650229,117.71,117.61,35.35675301]
[1644232589988,23.93650229,117.71,117.61,48.11245301]
[1644232590188,40.55754211,117.7,117.61,48.11245301]
[1644232590491,53.31314211,117.7,117.61,48.11245301]
[1644232590888,54.5246444,117.7,117.61,48.11245301]
[1644232591093,54.5246444,117.7,117.62,24.9678]
[1644232591288,57.56214211,117.7,117.62,25.2178]
[1644232591489,58.7736444,117.7,117.62,25.2178]
[1644232591890,59.0236444,117.7,117.62,25.2178]
[1644232592490,59.0236444,117.7,117.62,24.9678]
[1644232592889,1.21150229,117.69,117.62,24.9678]
[1644232593096,12.7592,117.67,117.6,23.8715]
[1644232593291,12.7592,117.67,117.61,0.25]
[1644232593694,12.7592,117.67,117.57,23.4705]
[1644232593893,12.7592,117.67,117.57,36.2308]
[1644232594093,0.6404765,117.66,117.58,43.7893219]
[1644232594292,12.7603,117.65,117.58,43.7893219]
[1644232595192,12.7603,117.65,117.58,44.0393219]
[1644232595593,13.0103,117.65,117.58,44.0393219]
[1644232595894,13.0103,117.65,117.58,43.7893219]
[1644232597493,29.5487345,117.64,117.58,43.7893219]
[1644232597700,29.5487345,117.64,117.57,23.4705]
[1644232597998,42.3109345,117.64,117.57,23.4705]
[1644232598194,12.7622,117.64,117.57,23.7205]
[1644232599198,12.7622,117.64,117.58,41.8667202]
[1644232599594,12.7622,117.64,117.58,42.1167202]
[1644232599795,1.21150229,117.66,117.58,42.1167202]
[1644232599996,12.7601,117.65,117.58,42.1167202]
[1644232601299,12.7601,117.65,117.58,41.73274588]
[1644232601896,12.7601,117.65,117.58,47.73274588]
[1644232602396,16.19394897,117.65,117.58,41.73274588]
[1644232602697,16.44394897,117.65,117.58,41.73274588]
[1644232603096,16.19394897,117.65,117.58,41.73274588]
[1644232603696,16.19394897,117.65,117.57,23.4705]
[1644232604697,16.44394897,117.65,117.57,67.78455094]
[1644232604898,16.44394897,117.65,117.57,23.4705]
[1644232605098,16.44394897,117.65,117.57,23.7205]
[1644232605499,17.65545126,117.65,117.57,23.7205]
[1644232605900,17.65545126,117.65,117.57,66.52750458]
[1644232606703,42.20595126,117.65,117.57,66.52750458]
[1644232609106,42.20595126,117.65,117.57,79.48040458]
[1644232609506,44.35277983,117.65,117.57,13.2029]
[1644232609705,4.251,117.64,117.57,13.2029]
[1644232609907,12.7644,117.62,117.57,13.2029]
[1644232613808,13.0144,117.62,117.57,13.2029]
[1644232614613,23.85712928,117.62,117.57,13.2029]
[1644232615612,13.0144,117.62,117.57,13.2029]
[1644232618617,13.0144,117.62,117.57,12.9529]
[1644232619443,43.75940229,117.64,117.58,141.0]
[1644232619444,1.21150229,117.64,117.58,141.0]
[1644232619643,0.00150229,117.66,117.59,12.42]
[1644232619842,4.25,117.72,117.6,113.0]
[1644232620041,0.32604484,117.73,117.61,16.669]
[1644232620241,0.32604484,117.73,117.61,16.919]
[1644232620439,0.32604484,117.73,117.64,53.52620048]
[1644232620440,32.59078561,117.73,117.64,53.52620048]
[1644232620640,32.59078561,117.73,117.63,16.668]
[1644232620841,32.44707302,117.72,117.62,28.8143]
[1644232621042,30.02580866,117.72,117.62,28.8143]
[1644232621242,30.02580866,117.72,117.62,29.0643]
[1644232621442,30.02580866,117.72,117.62,23.0643]
[1644232621641,9.31725216,117.71,117.62,23.0643]
[1644232621841,32.26474077,117.69,117.62,23.0643]
[1644232622643,32.26474077,117.69,117.62,70.90680261]
[1644232623043,12.7564,117.7,117.62,70.90680261]
[1644232623244,4.249,117.71,117.62,70.90680261]
[1644232623245,23.3559,117.72,117.62,70.90680261]
[1644232623645,12.7553,117.71,117.62,70.90680261]
[1644232624045,32.40748709,117.7,117.62,70.90680261]
[1644232624647,32.65748709,117.7,117.62,70.90680261]
[1644232625853,0.25,117.7,117.62,83.66170261]
[1644232626251,23.6059,117.72,117.62,85.49877857]
[1644232626451,27.8549,117.72,117.62,85.49877857]
[1644232626653,27.8549,117.72,117.62,83.66170261]
[1644232626952,46.57718437,117.71,117.62,83.66170261]
[1644232627152,50.82618437,117.71,117.62,83.66170261]
[1644232627354,50.82618437,117.71,117.62,85.49877857]
[1644232628257,46.57718437,117.71,117.62,85.49877857]
[1644232628855,46.82718437,117.71,117.62,85.49877857]
[1644232629055,48.97401294,117.71,117.62,24.65137596]
[1644232629254,12.7575,117.69,117.62,22.8143]
[1644232629455,12.7575,117.69,117.6,35.5612]
[1644232629456,12.7575,117.69,117.6,22.8051]
[1644232629757,4.25,117.68,117.6,22.8051]
[1644232629954,7.75940856,117.68,117.6,22.8051]
[1644232630959,12.7601,117.66,117.6,22.8051]
[1644232631161,46.58268437,117.66,117.6,22.8051]
[1644232632765,46.58268437,117.66,117.59,24.7145]
[1644232634165,46.58268437,117.66,117.59,24.9645]
[1644232635168,46.58268437,117.66,117.59,24.7145]
[1644232636270,46.83268437,117.66,117.59,24.7145]
[1644232636571,46.83268437,117.66,117.56,12.4676]
[1644232636770,12.763,117.63,117.57,22.6565]
[1644232637373,12.763,117.63,117.57,63.96882638]
[1644232637772,12.763,117.63,117.57,64.21882638]
[1644232637974,7.75940856,117.64,117.57,64.21882638]
[1644232638172,20.52120856,117.64,117.57,64.21882638]
[1644232639373,20.52120856,117.64,117.57,22.9065]
[1644232640174,20.77120856,117.64,117.57,22.9065]
[1644232640376,20.54476596,117.64,117.57,22.6565]
[1644232641773,20.54476596,117.64,117.57,22.9065]
[1644232642573,20.54476596,117.64,117.57,22.6565]
[1644232643176,20.54476596,117.64,117.57,20.1565]
[1644232643573,20.54476596,117.64,117.57,65.22937674]
[1644232643775,20.54476596,117.64,117.57,65.47937674]
[1644232645277,20.54476596,117.64,117.57,20.1565]
[1644232646602,20.54476596,117.64,117.57,68.11846793]
[1644232646798,20.54476596,117.64,117.57,68.36846793]
[1644232647299,20.54476596,117.64,117.57,20.4065]
[1644232649102,20.54476596,117.64,117.57,26.4065]
[1644232649802,20.54476596,117.64,117.57,20.4065]
[1644232650003,20.54476596,117.64,117.57,26.4065]
[1644232650403,38.31956036,117.64,117.57,26.4065]
[1644232650602,38.31956036,117.64,117.57,20.4065]
[1644232653102,38.31956036,117.64,117.57,20.1565]
[1644232654805,40.46638893,117.64,117.57,20.1565]
[1644232656006,4.251,117.63,117.57,20.1565]
[1644232656208,44.96765911,117.62,117.57,20.1565]
[1644232657907,12.7651,117.62,117.57,20.1565]
[1644232658409,12.7622,117.63,117.57,20.4065]
[1644232660609,9.46511204,117.62,117.57,20.4065]
[1644232661011,12.7622,117.63,117.57,20.4065]
[1644232661210,12.7613,117.64,117.57,20.4065]
[1644232661414,23.5842,117.66,117.57,32.4875]
[1644232661610,41.35730067,117.66,117.57,32.4875]
[1644232662010,36.72048672,117.65,117.57,32.4875]
[1644232663012,49.48068672,117.65,117.57,45.2477]
[1644232663412,49.48068672,117.65,117.58,34.93662528]
[1644232663811,49.48068672,117.65,117.58,35.18662528]
[1644232664611,49.73068672,117.65,117.58,35.18662528]
[1644232667914,49.73068672,117.65,117.58,0.25]
[1644232668315,49.73068672,117.65,117.57,33.1667]
[1644232668915,49.73068672,117.65,117.57,77.83188802]
[1644232669117,49.48068672,117.65,117.57,77.83188802]
[1644232671824,49.48068672,117.65,117.57,32.9167]
[1644232672015,49.48068672,117.65,117.57,20.1565]
[1644232672220,49.73068672,117.65,117.57,20.1565]
[1644232672418,51.87751529,117.65,117.57,20.1565]
[1644232673216,51.87751529,117.65,117.57,20.4065]
[1644232673515,4.251,117.64,117.57,20.4065]
[1644232673716,17.39816361,117.63,117.57,20.4065]
[1644232674115,17.39816361,117.63,117.57,66.19234217]
[1644232674516,12.7631,117.63,117.57,66.19234217]
[1644232675720,12.7631,117.63,117.57,20.4065]
[1644232676723,4.65691161,117.62,117.57,20.4065]
[1644232676926,17.42061161,117.62,117.57,20.4065]
[1644232677526,17.67061161,117.62,117.57,20.4065]
[1644232684232,17.67061161,117.62,117.57,20.1565]
[1644232687238,17.67061161,117.62,117.55,24.442]
[1644232687436,42.64131161,117.62,117.55,24.442]
[1644232688637,42.64131161,117.62,117.55,48.3384]
[1644232692448,44.78814018,117.62,117.55,48.3384]
[1644232693948,44.78814018,117.62,117.56,45.99764463]
[1644232694148,37.9844,117.62,117.56,45.99764463]
[1644232694763,25.2207,117.62,117.56,46.24764463]
[1644232694967,25.2207,117.62,117.56,0.25]
[1644232695766,25.2207,117.62,117.55,61.1005]
[1644232695964,50.2505314,117.63,117.56,35.2492814]
[1644232696164,50.2505314,117.63,117.57,24.0004]
[1644232696366,50.2505314,117.63,117.57,24.2504]
[1644232696665,50.2505314,117.63,117.57,24.0004]
[1644232696865,50.2505314,117.63,117.57,24.2504]
[1644232699165,50.2505314,117.63,117.57,24.0004]
[1644232699365,50.2505314,117.63,117.57,24.2504]
[1644232699566,50.5005314,117.63,117.57,24.2504]
[1644232704474,50.5005314,117.63,117.57,24.0004]
[1644232704672,50.5005314,117.63,117.55,24.442]
[1644232704872,50.5005314,117.63,117.55,48.1275]
[1644232706076,50.5005314,117.63,117.55,48.3775]
[1644232708774,50.5005314,117.63,117.55,48.1275]
[1644232710380,50.5005314,117.63,117.56,47.91046336]
[1644232710780,50.5005314,117.63,117.55,48.1275]
[1644232710978,50.5005314,117.63,117.55,48.3775]
[1644232711384,50.5005314,117.63,117.55,48.1275]
[1644232711781,50.5005314,117.63,117.55,85.13591981]
[1644232714284,50.5005314,117.63,117.55,48.3775]
[1644232714886,50.5005314,117.63,117.55,48.1275]
[1644232715288,50.5005314,117.63,117.56,34.67160028]
[1644232715888,50.5005314,117.63,117.56,47.42160028]
[1644232716288,50.5005314,117.63,117.57,23.1464]
[1644232716687,13.0123,117.63,117.57,23.1464]
[1644232716886,13.0123,117.63,117.57,23.3964]
[1644232717289,13.0123,117.63,117.57,23.1464]
[1644232719891,7.31473048,117.62,117.57,23.1464]
[1644232720292,6.07703048,117.63,117.57,23.1464]
[1644232722596,1.74236344,117.62,117.57,23.1464]
[1644232722794,6.07703048,117.63,117.57,23.1464]
[1644232723793,6.32703048,117.63,117.57,23.1464]
[1644232723993,35.85620699,117.63,117.57,23.1464]
[1644232734824,12.7608,117.64,117.57,23.3964]
[1644232735024,30.25260866,117.67,117.57,23.3964]
[1644232735224,48.75930866,117.67,117.58,12.42]
[1644232735623,8.42550341,117.66,117.58,12.67]
[1644232735824,34.73821843,117.66,117.59,22.506]
[1644232736026,47.49731843,117.66,117.59,22.506]
[1644232736424,39.07181502,117.66,117.59,22.506]
[1644232736624,39.07181502,117.66,117.59,22.756]
[1644232736825,39.07181502,117.66,117.59,22.506]
[1644232737625,39.07181502,117.66,117.59,22.756]
[1644232738928,39.32181502,117.66,117.59,22.756]
[1644232739829,1.21306369,117.65,117.59,22.756]
[1644232740028,20.48780483,117.64,117.59,22.756]
[1644232744835,20.48780483,117.64,117.59,22.506]
[1644232745035,21.70086852,117.64,117.55,24.442]
[1644232745236,23.1677,117.63,117.56,23.1098]
[1644232745434,12.7643,117.61,117.56,23.1098]
[1644232745835,26.31271502,117.6,117.56,23.1098]
[1644232746635,43.76256369,117.62,117.56,23.1098]
[1644232746636,12.7649,117.59,117.56,23.1098]
[1644232747238,6.05060789,117.58,117.56,23.1098]
[1644232747438,6.05060789,117.58,117.54,4.251]
[1644232747737,6.05060789,117.58,117.55,0.25]
[1644232748740,6.05060789,117.58,117.54,17.2648]
[1644232748939,43.53264677,117.6,117.54,13.0138]
[1644232752741,43.53264677,117.6,117.54,12.7638]
[1644232754341,43.53264677,117.6,117.54,13.0138]
[1644232756544,43.78264677,117.6,117.54,13.0138]
[1644232760649,43.78264677,117.6,117.54,50.95993919]
[1644232760849,43.78264677,117.6,117.54,19.0138]
[1644232765178,13.0135,117.6,117.54,19.0138]
[1644232766179,39.65107737,117.6,117.54,19.0138]
[1644232768982,39.65107737,117.6,117.54,6.25]
[1644232769382,39.65107737,117.6,117.54,0.25]
[1644232769783,39.65107737,117.6,117.53,36.3482]
[1644232770182,39.65107737,117.6,117.53,35.8482]
[1644232771886,39.65107737,117.6,117.54,40.45475927]
[1644232772086,13.0135,117.6,117.54,53.21875927]
[1644232772287,12.7629,117.61,117.54,53.46875927]
[1644232772486,1.21306369,117.63,117.54,65.88875927]
[1644232772789,1.21306369,117.63,117.55,24.2019]
[1644232772987,29.13533566,117.64,117.56,41.78849919]
[1644232773186,1.21306369,117.63,117.56,42.03849919]
[1644232773386,1.21306369,117.63,117.56,41.53849919]
[1644232773387,6.61854788,117.62,117.56,41.53849919]
[1644232773587,6.61854788,117.62,117.56,13.0111]
[1644232775193,7.83161157,117.62,117.56,13.0111]
[1644232775990,19.63024788,117.62,117.56,13.0111]
[1644232776395,20.84331157,117.62,117.56,0.25]
[1644232776594,20.84331157,117.62,117.55,24.2019]
[1644232777491,44.39991157,117.62,117.55,24.2019]
[1644232782195,44.39991157,117.62,117.54,12.7641]
[1644232782396,1.21306369,117.61,117.54,13.0141]
[1644232782593,37.0966069,117.6,117.54,13.0141]
[1644232782794,61.7697069,117.6,117.54,13.0141]
[1644232784195,62.0197069,117.6,117.54,13.0141]
[1644232787797,61.7697069,117.6,117.54,13.0141]
[1644232791604,62.0197069,117.6,117.54,13.0141]
[1644232792204,62.0197069,117.6,117.52,12.42]
[1644232792403,62.0197069,117.6,117.53,23.7695]
[1644232792804,62.0197069,117.6,117.53,24.0195]
[1644232796128,63.23277059,117.6,117.53,23.7695]
[1644232796529,63.23277059,117.6,117.51,0.77966446]
[1644232796831,12.7719,117.57,117.51,0.77966446]
[1644232797029,24.3320069,117.56,117.51,0.77966446]
[1644232798330,12.7722,117.55,117.51,0.77966446]
[1644232799332,10.20881295,117.54,117.51,0.77966446]
[1644232799533,18.82420789,117.53,117.51,0.77966446]
[1644232799738,24.3320069,117.52,117.51,0.77966446]
[1644232800232,0.25,117.52,117.51,0.77966446]
[1644232800936,13.0231,117.52,117.51,0.77966446]
[1644232802241,0.25,117.52,117.51,0.77966446]
[1644232804038,6.05060789,117.53,117.51,0.77966446]
[1644232804641,12.42,117.58,117.51,0.77966446]
[1644232804842,23.8909,117.57,117.51,0.77966446]
[1644232805039,26.63081412,117.56,117.51,0.77966446]
[1644232806041,39.39951412,117.56,117.51,0.77966446]
[1644232807742,39.64951412,117.56,117.51,0.77966446]
[1644232811148,43.90251412,117.56,117.51,0.77966446]
[1644232812349,39.64951412,117.56,117.51,0.77966446]
[1644232812950,52.06951412,117.56,117.51,0.77966446]
[1644232813550,56.32251412,117.56,117.51,0.77966446]
[1644232817354,2.14682857,117.55,117.51,0.77966446]
[1644232817554,20.68310573,117.54,117.51,0.77966446]
[1644232817754,6.05060789,117.53,117.51,0.77966446]
[1644232817952,26.63081412,117.52,117.51,0.77966446]
[1644232819353,26.63081412,117.52,117.48,22.8031]
[1644232820755,26.63081412,117.52,117.44,1.83104362]
[1644232820756,39.40411412,117.52,117.44,1.83104362]
[1644232821058,39.40411412,117.52,117.42,4.256]
[1644232821356,23.1035,117.51,117.42,4.256]
[1644232821758,7.13034127,117.5,117.43,24.8362]
[1644232822660,12.7776,117.49,117.43,24.8362]
[1644232824262,26.63081412,117.48,117.43,24.8362]
[1644232824659,26.63081412,117.48,117.41,12.7766]
[1644232824860,39.40861412,117.48,117.4,23.2825]
[1644232825060,39.65861412,117.48,117.4,29.2825]
[1644232825263,39.65861412,117.48,117.4,23.2825]
[1644232831290,39.65861412,117.48,117.37,4.257]
[1644232831489,30.16562857,117.47,117.37,4.257]
[1644232831688,12.7849,117.44,117.37,4.257]
[1644232832090,13.0349,117.44,117.37,4.257]
[1644232832290,20.16524127,117.44,117.37,52.28231665]
[1644232832891,20.16524127,117.44,117.37,52.53231665]
[1644232833093,20.16524127,117.44,117.37,52.28231665]
[1644232833294,20.16524127,117.44,117.37,4.257]
[1644232833694,13.0349,117.44,117.37,27.4888]
[1644232834693,23.66752916,117.43,117.37,27.2388]
[1644232834892,36.45032916,117.43,117.37,22.9818]
[1644232835092,36.45032916,117.43,117.37,23.2318]
[1644232835293,36.45032916,117.43,117.37,22.9818]
[1644232836297,36.45032916,117.43,117.34,12.7842]
[1644232836496,36.45032916,117.43,117.35,22.661]
[1644232838299,60.60102916,117.43,117.35,22.661]
[1644232838497,36.9335,117.43,117.35,80.90198153]
[1644232838697,36.9335,117.43,117.35,81.15198153]
[1644232838896,24.1507,117.43,117.35,87.15198153]
[1644232839100,12.7817,117.44,117.36,4.259]
[1644232839296,12.7817,117.44,117.36,4.509]
[1644232839699,12.7817,117.44,117.37,47.75854415]
[1644232840097,12.7817,117.44,117.37,60.78984415]
[1644232840698,13.0317,117.44,117.37,60.78984415]
[1644232841698,12.7817,117.44,117.37,60.78984415]
[1644232842499,12.7817,117.44,117.38,23.9]
[1644232842698,13.5931499,117.44,117.38,36.9309]
[1644232843198,13.8431499,117.44,117.38,36.9309]
[1644232843799,13.8431499,117.44,117.38,23.9]
[1644232844599,13.8431499,117.44,117.34,4.258]
[1644232844800,13.8431499,117.44,117.35,24.7169]
[1644232844999,13.8431499,117.44,117.36,34.90429259]
[1644232845402,13.8431499,117.44,117.35,24.7169]
[1644232845602,2.14682857,117.43,117.32,23.4298]
[1644232845803,12.789,117.4,117.32,23.4298]
[1644232846307,45.53569805,117.4,117.32,69.48801537]
[1644232847305,45.53569805,117.4,117.32,23.4298]
[1644232848007,4.26,117.39,117.31,23.656]
[1644232848408,29.10177205,117.36,117.29,0.1]
[1644232848607,33.36277205,117.36,117.29,0.1]
[1644232848808,29.10177205,117.36,117.28,4.36]
[1644232850007,12.7931,117.34,117.28,4.36]
[1644232850206,17.45248334,117.34,117.28,0.1]
[1644232851008,17.45248334,117.34,117.28,1.93104362]
[1644232851309,17.45248334,117.34,117.28,0.1]
[1644232853110,13.0431,117.34,117.28,0.1]
[1644232854110,44.38222411,117.34,117.28,0.1]
[1644232854610,44.38222411,117.34,117.27,0.1]
[1644232856416,56.80222411,117.34,117.26,0.1]
[1644232856613,4.261,117.33,117.26,0.1]
[1644232856813,12.7981,117.31,117.26,0.1]
[1644232857213,15.22013128,117.31,117.26,0.1]
[1644232857814,12.7981,117.31,117.26,0.1]
[1644232858016,12.7955,117.33,117.26,0.1]
[1644232858214,4.261,117.37,117.26,0.1]
[1644232858413,10.5193,117.37,117.27,1.83104362]
[1644232858614,22.9393,117.37,117.27,1.93104362]
[1644232858916,25.95896972,117.36,117.27,0.1]
[1644232859115,17.0544,117.35,117.27,0.1]
[1644232859916,7.80218567,117.34,117.27,0.1]
[1644232860117,12.7934,117.35,117.27,0.1]
[1644232861115,38.7108203,117.35,117.27,0.1]